fUST/lending_fUST_20241231
["ID","MTS","AMOUNT","RATE_DAILY","PERIOD"]
[347271285,1735645851432,-500.0,0.00019726,3]
[347271286,1735645851441,-521.58951824,0.00019726,3]
[347271287,1735645851450,-500.0,0.00019726,3]
[347271288,1735645851460,-500.0,0.00019726,3]
[347271289,1735645851470,-500.0,0.00019726,3]
[347271290,1735645851479,-500.0,0.00019726,3]
[347271291,1735645851488,-500.0,0.00019726,3]
[347271292,1735645851498,-500.0,0.00019726,3]
[347271293,1735645851508,-500.0,0.00019726,3]
[347271294,1735645851517,-500.0,0.00019726,3]
[347271295,1735645851526,-1581.83,0.00019726,3]
[347271296,1735645851536,-15826.28,0.00019726,3]
[347271297,1735645851545,-500.0,0.00019726,3]
[347271298,1735645851554,-766.16,0.00019726,3]
[347271299,1735645851563,-500.0,0.00019726,3]
[347271300,1735645851572,-500.0,0.00019726,3]
[347271301,1735645851581,-500.0,0.00019726,3]
[347271302,1735645851591,-500.0,0.00019726,3]
[347271303,1735645851600,-947.06,0.00019726,3]
[347271304,1735645851609,-500.0,0.00019726,3]
[347271305,1735645851618,-604.97,0.00019726,3]
[347271306,1735645851628,-500.0,0.00019726,3]
[347271307,1735645851637,-1925.31,0.00019726,3]
[347271308,1735645851647,-500.0,0.00019726,3]
[347271309,1735645851656,-3847.8,0.00019726,3]
[347271310,1735645851665,-500.0,0.00019726,3]
[347271311,1735645851674,-500.0,0.00019726,3]
[347271312,1735645851683,-500.0,0.00019726,3]
[347271313,1735645851692,-1286.15,0.00019726,3]
[347271314,1735645851701,-500.0,0.00019726,3]
[347271315,1735645851710,-500.0,0.00019726,3]
[347271316,1735645851719,-500.0,0.00019726,3]
[347271317,1735645851728,-500.0,0.00019726,3]
[347271318,1735645851737,-1244.23,0.00019726,3]
[347271319,1735645851747,-618.73,0.00019726,3]
[347271320,1735645851756,-2137.74,0.00019999,3]
[347271321,1735645851765,-500.0,0.0002,3]
[347271322,1735645851775,-608.98,0.0002,3]
[347271323,1735645851783,-3299.52,0.0002,3]
[347271324,1735645851793,-500.0,0.0002,3]
[347271325,1735645851803,-500.0,0.0002,3]
[347271326,1735645851812,-604.89,0.0002,3]
[347271327,1735645851821,-539.95,0.0002,3]
[347271328,1735645851830,-1808.34,0.0002,3]
[347271329,1735645851839,-500.0,0.0002,3]
[347271330,1735645851848,-500.0,0.0002,3]
[347271331,1735645851857,-554.11,0.0002,3]
[347271332,1735645851869,-500.0,0.0002,3]
[347271333,1735645851879,-500.0,0.0002,3]
[347271334,1735645851888,-500.0,0.0002,3]
[347271335,1735645851897,-689.31,0.0002,3]
[347271336,1735645851906,-500.0,0.0002,3]
[347271337,1735645851915,-655.24,0.0002,3]
[347271338,1735645851924,-500.0,0.0002,3]
[347271339,1735645851934,-527.11076054,0.0002,3]
[347271340,1735645851943,-500.0,0.0002,3]
[347271341,1735645851952,-500.0,0.0002,3]
[347271342,1735645851961,-500.0,0.0002,3]
[347271343,1735645851970,-500.0,0.0002,3]
[347271344,1735645851979,-322.46918524,0.0002,3]
[347271345,1735645851988,-500.0,0.0002,3]
[347271346,1735645851997,-500.0,0.0002,3]
[347271347,1735645852007,-500.0,0.0002,3]
[347271348,1735645852016,-657.68,0.0002,3]
[347271349,1735645852025,-500.0,0.0002,3]
[347271350,1735645852034,-500.0,0.0002,3]
[347271351,1735645852043,-684.21,0.0002,3]
[347271352,1735645852053,-500.0,0.0002,3]
[347271353,1735645852062,-398.48844231,0.0002,3]
[347271354,1735645852071,-500.0,0.0002,3]
[347271355,1735645852080,-637.9,0.0002,3]
[347271356,1735645852089,-500.0,0.0002,3]
[347271357,1735645852098,-500.0,0.0002,3]
[347271358,1735645852107,-500.0,0.0002,3]
[347271359,1735645852117,-500.0,0.0002,3]
[347271360,1735645852127,-500.0,0.0002,3]
[347271361,1735645852136,-500.0,0.0002,3]
[347271362,1735645852146,-616.9,0.0002,3]
[347271363,1735645852155,-500.0,0.0002,3]
[347271364,1735645852164,-10990.72,0.0002,2]
[347271365,1735645852174,-500.0,0.0002,3]
[347271366,1735645852183,-500.0,0.0002,3]
[347271367,1735645852192,-500.0,0.0002,3]
[347271368,1735645852202,-500.0,0.0002,3]
[347271369,1735645852211,-500.0,0.0002,3]
[347271370,1735645852221,-500.0,0.0002,3]
[347271371,1735645852230,-500.0,0.0002,3]
[347271372,1735645852240,-1581.83,0.0002,3]
[347271373,1735645852249,-15826.28,0.0002,3]
[347271374,1735645852260,-500.0,0.0002,3]
[347271375,1735645852269,-766.16,0.0002,3]
[347271376,1735645852279,-500.0,0.0002,3]
[347271377,1735645852288,-502.12171951,0.0002,3]
[347271378,1735645852298,-947.06,0.0002,3]
[347271379,1735645852307,-500.0,0.0002,3]
[347271380,1735645852317,-604.97,0.0002,3]
[347271381,1735645852326,-500.0,0.0002,3]
[347271382,1735645852335,-1925.31,0.0002,3]
[347271383,1735645852345,-500.0,0.0002,3]
[347271384,1735645852354,-3847.8,0.0002,3]
[347271385,1735645852363,-541.37097843,0.0002,3]
[347271386,1735645852373,-1286.15,0.0002,3]
[347271387,1735645852387,-500.0,0.0002,3]
[347271388,1735645852396,-500.0,0.0002,3]
[347271389,1735645852405,-258.60912058,0.0002,3]
[347271390,1735645852414,-1244.23,0.0002,3]
[347271391,1735645852425,-618.73,0.0002,3]
[347271392,1735645852492,-150.0,0.00020111,2]
[347271393,1735645852504,-715.8581537,0.00020111,2]
[347271394,1735645852514,-394.0,0.00020111,2]
[347271395,1735645852523,-8676.81,0.000202,2]
[347271396,1735645852533,-2778.54,0.000202,2]
[347271397,1735645852541,-500.0,0.00020273,3]
[347271398,1735645852551,-608.98,0.00020273,3]
[347271399,1735645852560,-3299.52,0.00020273,3]
[347271400,1735645852569,-500.0,0.00020273,3]
[347271401,1735645852579,-500.0,0.00020273,3]
[347271402,1735645852588,-604.89,0.00020273,3]
[347271403,1735645852598,-539.95,0.00020273,3]
[347271404,1735645852608,-1808.34,0.00020273,3]
[347271405,1735645852617,-500.0,0.00020273,3]
[347271406,1735645852626,-500.0,0.00020273,3]
[347271407,1735645852636,-554.11,0.00020273,3]
[347271408,1735645852646,-500.0,0.00020273,3]
[347271409,1735645852655,-500.0,0.00020273,3]
[347271410,1735645852665,-689.31,0.00020273,3]
[347271411,1735645852674,-500.0,0.00020273,3]
[347271412,1735645852683,-655.24,0.00020273,3]
[347271413,1735645852693,-500.0,0.00020273,3]
[347271414,1735645852702,-500.0,0.00020273,3]
[347271415,1735645852711,-500.0,0.00020273,3]
[347271416,1735645852720,-500.0,0.00020273,3]
[347271417,1735645852730,-500.0,0.00020273,3]
[347271418,1735645852739,-500.0,0.00020273,3]
[347271419,1735645852749,-657.68,0.00020273,3]
[347271420,1735645852759,-500.0,0.00020273,3]
[347271421,1735645852768,-500.0,0.00020273,3]
[347271422,1735645852777,-684.21,0.00020273,3]
[347271423,1735645852787,-500.0,0.00020273,3]
[347271424,1735645852797,-500.0,0.00020273,3]
[347271425,1735645852806,-500.0,0.00020273,3]
[347271426,1735645852815,-500.0,0.00020273,3]
[347271427,1735645852824,-500.0,0.00020273,3]
[347271428,1735645852834,-500.0,0.00020273,3]
[347271429,1735645852843,-616.9,0.00020273,3]
[347271430,1735645852852,-500.0,0.00020273,3]
[347271431,1735645852861,-567.75314584,0.00020273,3]
[347271432,1735645852870,-500.0,0.00020273,3]
[347271433,1735645852880,-500.0,0.00020273,3]
[347271434,1735645852889,-500.0,0.00020273,3]
[347271435,1735645852898,-500.0,0.00020273,3]
[347271436,1735645852907,-500.0,0.00020273,3]
[347271437,1735645852916,-1581.83,0.00020273,3]
[347271438,1735645852925,-15826.28,0.00020273,3]
[347271439,1735645852934,-500.0,0.00020273,3]
[347271440,1735645852943,-766.16,0.00020273,3]
[347271441,1735645852953,-500.0,0.00020273,3]
[347271442,1735645852962,-947.06,0.00020273,3]
[347271443,1735645852971,-500.0,0.00020273,3]
[347271444,1735645852981,-604.97,0.00020273,3]
[347271445,1735645852990,-500.0,0.00020273,3]
[347271446,1735645853001,-1925.31,0.00020273,3]
[347271447,1735645853010,-602.72672083,0.00020273,3]
[347271448,1735645853020,-3847.8,0.00020273,3]
[347271449,1735645853029,-2137.74,0.00020273,3]
[347271450,1735645853039,-1286.15,0.00020273,3]
[347271451,1735645853048,-500.0,0.00020273,3]
[347271452,1735645853057,-1244.23,0.00020273,3]
[347271453,1735645853066,-618.73,0.00020273,3]
[347271454,1735645853076,-161.0,0.00020404,2]
[347271455,1735645853085,-161.0,0.00020404,2]
[347271456,1735645853094,-161.0,0.00020404,2]
[347271457,1735645853103,-161.0,0.00020404,2]
[347271458,1735645853112,-161.0,0.00020404,2]
[347271459,1735645853121,-161.0,0.00020404,2]
[347271460,1735645853130,-161.0,0.00020404,2]
[347271461,1735645853139,-161.0,0.00020404,2]
[347271462,1735645853148,-161.0,0.00020404,2]
[347271463,1735645853157,-161.0,0.00020404,2]
[347271464,1735645853166,-161.0,0.00020404,2]
[347271465,1735645853175,-161.0,0.00020404,2]
[347271466,1735645853184,-161.0,0.00020404,2]
[347271467,1735645853193,-153.0,0.00020404,2]
[347271468,1735645853203,-153.0,0.00020404,2]
[347271469,1735645853212,-153.0,0.00020404,2]
[347271470,1735645853221,-153.0,0.00020404,2]
[347271471,1735645853231,-153.0,0.00020404,2]
[347271472,1735645853240,-153.0,0.00020404,2]
[347271473,1735645853250,-153.0,0.00020404,2]
[347271474,1735645853260,-153.0,0.00020404,2]
[347271475,1735645853269,-153.0,0.00020404,2]
[347271476,1735645853278,-153.0,0.00020404,2]
[347271477,1735645853287,-153.0,0.00020404,2]
[347271478,1735645853296,-161.0,0.00020404,2]
[347271479,1735645853305,-161.0,0.00020404,2]
[347271480,1735645853314,-161.0,0.00020404,2]
[347271481,1735645853323,-161.0,0.00020404,2]
[347271482,1735645853332,-161.0,0.00020404,2]
[347271483,1735645853341,-161.0,0.00020404,2]
[347271484,1735645853350,-161.0,0.00020404,2]
[347271485,1735645853359,-161.0,0.00020404,2]
[347271486,1735645853368,-161.0,0.00020404,2]
[347271487,1735645853379,-161.0,0.00020404,2]
[347271488,1735645853389,-161.0,0.00020404,2]
[347271489,1735645853398,-161.0,0.00020404,2]
[347271490,1735645853407,-161.0,0.00020404,2]
[347271491,1735645853416,-161.0,0.00020404,2]
[347271492,1735645853426,-153.0,0.00020404,2]
[347271493,1735645853436,-153.0,0.00020404,2]
[347271494,1735645853444,-153.0,0.00020404,2]
[347271495,1735645853455,-153.0,0.00020404,2]
[347271496,1735645853464,-153.0,0.00020404,2]
[347271497,1735645853474,-153.0,0.00020404,2]
[347271498,1735645853483,-153.0,0.00020404,2]
[347271499,1735645853492,-153.0,0.00020404,2]
[347271500,1735645853502,-153.0,0.00020404,2]
[347271501,1735645853511,-153.0,0.00020404,2]
[347271502,1735645853521,-153.0,0.00020404,2]
[347271503,1735645853530,-153.0,0.00020404,2]
[347271504,1735645853540,-153.0,0.00020404,2]
[347271505,1735645853549,-287.243881,0.00020447,2]
[347271506,1735645853558,-500.0,0.00020547,3]
[347271507,1735645853620,-608.98,0.00020547,3]
[347271508,1735645853629,-3299.52,0.00020547,3]
[347271509,1735645853639,-500.0,0.00020547,3]
[347271510,1735645853648,-500.0,0.00020547,3]
[347271511,1735645853658,-604.89,0.00020547,3]
[347271512,1735645853668,-539.95,0.00020547,3]
[347271513,1735645853677,-1808.34,0.00020547,3]
[347271514,1735645853687,-500.0,0.00020547,3]
[347271515,1735645853696,-500.0,0.00020547,3]
[347271516,1735645853705,-554.11,0.00020547,3]
[347271517,1735645853714,-500.0,0.00020547,3]
[347271518,1735645853724,-500.0,0.00020547,3]
[347271519,1735645853733,-689.31,0.00020547,3]
[347271520,1735645853743,-500.0,0.00020547,3]
[347271521,1735645853754,-655.24,0.00020547,3]
[347271522,1735645853763,-500.0,0.00020547,3]
[347271523,1735645853772,-470.08875125,0.00020547,3]
[347271524,1735645853781,-643.31871962,0.00020547,3]
[347271525,1735645853790,-500.0,0.00020547,3]
[347271526,1735645853800,-500.0,0.00020547,3]
[347271527,1735645853809,-500.0,0.00020547,3]
[347271528,1735645853818,-657.68,0.00020547,3]
[347271529,1735645853827,-292.15350081,0.00020547,3]
[347271530,1735645853837,-684.21,0.00020547,3]
[347271531,1735645853846,-500.0,0.00020547,3]
[347271532,1735645853855,-500.0,0.00020547,3]
[347271533,1735645853864,-500.0,0.00020547,3]
[347271534,1735645853873,-500.0,0.00020547,3]
[347271535,1735645853882,-500.0,0.00020547,3]
[347271536,1735645853891,-616.9,0.00020547,3]
[347271537,1735645853900,-500.0,0.00020547,3]
[347271538,1735645853909,-500.0,0.00020547,3]
[347271539,1735645853919,-500.0,0.00020547,3]
[347271540,1735645853928,-500.0,0.00020547,3]
[347271541,1735645853937,-500.0,0.00020547,3]
[347271542,1735645853947,-1581.83,0.00020547,3]
[347271543,1735645853956,-15826.28,0.00020547,3]
[347271544,1735645853965,-500.0,0.00020547,3]
[347271545,1735645853974,-766.16,0.00020547,3]
[347271546,1735645853983,-500.0,0.00020547,3]
[347271547,1735645853993,-947.06,0.00020547,3]
[347271548,1735645854002,-500.0,0.00020547,3]
[347271549,1735645854011,-604.97,0.00020547,3]
[347271550,1735645854020,-500.0,0.00020547,3]
[347271551,1735645854029,-1925.31,0.00020547,3]
[347271552,1735645854038,-3847.8,0.00020547,3]
[347271553,1735645854049,-2137.74,0.00020547,3]
[347271554,1735645854058,-1286.15,0.00020547,3]
[347271555,1735645854067,-500.0,0.00020547,3]
[347271556,1735645854077,-1244.23,0.00020547,3]
[347271557,1735645854086,-618.73,0.00020547,3]
[347271558,1735645854095,-823.0,0.00020763,2]
[347271559,1735645854104,-1000.0,0.000208,8]
[347271560,1735645854113,-1004.32,0.000208,10]
[347271561,1735645854123,-500.0,0.00020821,3]
[347271562,1735645854132,-608.98,0.00020821,3]
[347271563,1735645854141,-3299.52,0.00020821,3]
[347271564,1735645854150,-500.0,0.00020821,3]
[347271565,1735645854159,-500.0,0.00020821,3]
[347271566,1735645854168,-604.89,0.00020821,3]
[347271567,1735645854177,-539.95,0.00020821,3]
[347271568,1735645854186,-1808.34,0.00020821,3]
[347271569,1735645854195,-500.0,0.00020821,3]
[347271570,1735645854205,-500.0,0.00020821,3]
[347271571,1735645854214,-554.11,0.00020821,3]
[347271572,1735645854223,-500.0,0.00020821,3]
[347271573,1735645854232,-500.0,0.00020821,3]
[347271574,1735645854242,-689.31,0.00020821,3]
[347271575,1735645854251,-500.0,0.00020821,3]
[347271576,1735645854260,-655.24,0.00020821,3]
[347271577,1735645854269,-500.0,0.00020821,3]
[347271578,1735645854279,-500.0,0.00020821,3]
[347271579,1735645854288,-500.0,0.00020821,3]
[347271580,1735645854296,-657.68,0.00020821,3]
[347271581,1735645854305,-684.21,0.00020821,3]
[347271582,1735645854314,-500.0,0.00020821,3]
[347271583,1735645854323,-500.0,0.00020821,3]
[347271584,1735645854332,-500.0,0.00020821,3]
[347271585,1735645854341,-500.0,0.00020821,3]
[347271586,1735645854350,-500.0,0.00020821,3]
[347271587,1735645854359,-616.9,0.00020821,3]
[347271588,1735645854368,-500.0,0.00020821,3]
[347271589,1735645854378,-500.0,0.00020821,3]
[347271590,1735645854390,-500.0,0.00020821,3]
[347271591,1735645854399,-500.0,0.00020821,3]
[347271592,1735645854409,-500.0,0.00020821,3]
[347271593,1735645854418,-1581.83,0.00020821,3]
[347271594,1735645854427,-15826.28,0.00020821,3]
[347271595,1735645854436,-500.0,0.00020821,3]
[347271596,1735645854446,-766.16,0.00020821,3]
[347271597,1735645854457,-500.0,0.00020821,3]
[347271598,1735645854466,-947.06,0.00020821,3]
[347271599,1735645854476,-500.0,0.00020821,3]
[347271600,1735645854485,-604.97,0.00020821,3]
[347271601,1735645854494,-500.0,0.00020821,3]
[347271602,1735645854504,-1925.31,0.00020821,3]
[347271603,1735645854513,-3847.8,0.00020821,3]
[347271604,1735645854523,-2137.74,0.00020821,3]
[347271605,1735645854532,-1286.15,0.00020821,3]
[347271606,1735645854541,-359.02209779,0.00020821,3]
[347271607,1735645854550,-1244.23,0.00020821,3]
[347271608,1735645854559,-618.73,0.00020821,3]
[347271609,1735645854568,-623.604,0.0002095,2]
[347271610,1735645854577,-483.36,0.00021,2]
[347271611,1735645854637,-300.0,0.00021,9]
[347271612,1735645854647,-500.0,0.00021095,3]
[347271613,1735645854657,-608.98,0.00021095,3]
[347271614,1735645854666,-3299.52,0.00021095,3]
[347271615,1735645854676,-500.0,0.00021095,3]
[347271616,1735645854685,-500.0,0.00021095,3]
[347271617,1735645854694,-604.89,0.00021095,3]
[347271618,1735645854704,-539.95,0.00021095,3]
[347271619,1735645854713,-500.0,0.00021095,3]
[347271620,1735645854722,-1808.34,0.00021095,3]
[347271621,1735645854731,-500.0,0.00021095,3]
[347271622,1735645854741,-554.11,0.00021095,3]
[347271623,1735645854750,-500.0,0.00021095,3]
[347271624,1735645854759,-500.0,0.00021095,3]
[347271625,1735645854768,-689.31,0.00021095,3]
[347271626,1735645854778,-500.0,0.00021095,3]
[347271627,1735645854787,-655.24,0.00021095,3]
[347271628,1735645854796,-500.0,0.00021095,3]
[347271629,1735645854806,-500.0,0.00021095,3]
[347271630,1735645854815,-500.0,0.00021095,3]
[347271631,1735645854824,-657.68,0.00021095,3]
[347271632,1735645854834,-684.21,0.00021095,3]
[347271633,1735645854843,-539.22232638,0.00021095,3]
[347271634,1735645854853,-500.0,0.00021095,3]
[347271635,1735645854862,-500.0,0.00021095,3]
[347271636,1735645854871,-500.0,0.00021095,3]
[347271637,1735645854881,-500.0,0.00021095,3]
[347271638,1735645854890,-616.9,0.00021095,3]
[347271639,1735645854900,-500.0,0.00021095,3]
[347271640,1735645854909,-206.257281,0.00021095,2]
[347271641,1735645854918,-500.0,0.00021095,3]
[347271642,1735645854928,-500.0,0.00021095,3]
[347271643,1735645854937,-500.0,0.00021095,3]
[347271644,1735645854946,-1581.83,0.00021095,3]
[347271645,1735645854956,-15826.28,0.00021095,3]
[347271646,1735645854965,-500.0,0.00021095,3]
[347271647,1735645854974,-766.16,0.00021095,3]
[347271648,1735645854983,-500.0,0.00021095,3]
[347271649,1735645854993,-947.06,0.00021095,3]
[347271650,1735645855002,-500.0,0.00021095,3]
[347271651,1735645855011,-604.97,0.00021095,3]
[347271652,1735645855020,-500.0,0.00021095,3]
[347271653,1735645855029,-1925.31,0.00021095,3]
[347271654,1735645855039,-3847.8,0.00021095,3]
[347271655,1735645855047,-2137.74,0.00021095,3]
[347271656,1735645855057,-1286.15,0.00021095,3]
[347271657,1735645855066,-1244.23,0.00021095,3]
[347271658,1735645855075,-618.73,0.00021095,3]
[347271659,1735645855084,-1200.0,0.00021216,2]
[347271660,1735645855093,-500.0,0.00021369,3]
[347271661,1735645855103,-608.98,0.00021369,3]
[347271662,1735645855112,-3299.52,0.00021369,3]
[347271663,1735645855121,-500.0,0.00021369,3]
[347271664,1735645855130,-500.0,0.00021369,3]
[347271665,1735645855139,-604.89,0.00021369,3]
[347271666,1735645855148,-539.95,0.00021369,3]
[347271667,1735645855158,-500.0,0.00021369,3]
[347271668,1735645855167,-1808.34,0.00021369,3]
[347271669,1735645855176,-466.63294848,0.00021369,3]
[347271670,1735645855185,-554.11,0.00021369,3]
[347271671,1735645855195,-500.0,0.00021369,3]
[347271672,1735645855203,-500.0,0.00021369,3]
[347271673,1735645855213,-689.31,0.00021369,3]
[347271674,1735645855222,-500.0,0.00021369,3]
[347271675,1735645855231,-500.0,0.00021369,3]
[347271676,1735645855240,-500.0,0.00021369,3]
[347271677,1735645855251,-500.0,0.00021369,3]
[347271678,1735645855260,-657.68,0.00021369,3]
[347271679,1735645855269,-684.21,0.00021369,3]
[347271680,1735645855278,-500.0,0.00021369,3]
[347271681,1735645855287,-500.0,0.00021369,3]
[347271682,1735645855296,-500.0,0.00021369,3]
[347271683,1735645855305,-500.0,0.00021369,3]
[347271684,1735645855315,-616.9,0.00021369,3]
[347271685,1735645855324,-500.0,0.00021369,3]
[347271686,1735645855333,-500.0,0.00021369,3]
[347271687,1735645855343,-500.0,0.00021369,3]
[347271688,1735645855352,-500.0,0.00021369,3]
[347271689,1735645855362,-1581.83,0.00021369,3]
[347271690,1735645855371,-15826.28,0.00021369,3]
[347271691,1735645855384,-500.0,0.00021369,3]
[347271692,1735645855394,-766.16,0.00021369,3]
[347271693,1735645855403,-500.0,0.00021369,3]
[347271694,1735645855413,-947.06,0.00021369,3]
[347271695,1735645855423,-153.66779617,0.00021369,3]
[347271696,1735645855432,-604.97,0.00021369,3]
[347271697,1735645855442,-500.0,0.00021369,3]
[347271698,1735645855451,-1925.31,0.00021369,3]
[347271699,1735645855463,-3847.8,0.00021369,3]
[347271700,1735645855473,-2137.74,0.00021369,3]
[347271701,1735645855483,-1286.15,0.00021369,3]
[347271702,1735645855492,-1244.23,0.00021369,3]
[347271703,1735645855503,-618.73,0.00021369,3]
[347271704,1735645855512,-8548.46227509,0.00021591,2]
[347271705,1735645855522,-500.0,0.00021643,3]
[347271706,1735645855532,-608.98,0.00021643,3]
[347271707,1735645855541,-3299.52,0.00021643,3]
[347271708,1735645855602,-500.0,0.00021643,3]
[347271709,1735645855612,-500.0,0.00021643,3]
[347271710,1735645855622,-604.89,0.00021643,3]
[347271711,1735645855631,-539.95,0.00021643,3]
[347271712,1735645855640,-500.0,0.00021643,3]
[347271713,1735645855649,-1808.34,0.00021643,3]
[347271714,1735645855658,-554.11,0.00021643,3]
[347271715,1735645855668,-500.0,0.00021643,3]
[347271716,1735645855677,-500.0,0.00021643,3]
[347271717,1735645855687,-689.31,0.00021643,3]
[347271718,1735645855696,-500.0,0.00021643,3]
[347271719,1735645855706,-500.0,0.00021643,3]
[347271720,1735645855716,-500.0,0.00021643,3]
[347271721,1735645855725,-500.0,0.00021643,3]
[347271722,1735645855735,-657.68,0.00021643,3]
[347271723,1735645855745,-684.21,0.00021643,3]
[347271724,1735645855755,-500.0,0.00021643,3]
[347271725,1735645855764,-500.0,0.00021643,3]
[347271726,1735645855774,-500.0,0.00021643,3]
[347271727,1735645855783,-500.0,0.00021643,3]
[347271728,1735645855792,-616.9,0.00021643,3]
[347271729,1735645855801,-500.0,0.00021643,3]
[347271730,1735645855811,-500.0,0.00021643,3]
[347271731,1735645855820,-608.7997429,0.00021643,3]
[347271732,1735645855830,-1581.83,0.00021643,3]
[347271733,1735645855839,-500.0,0.00021643,3]
[347271734,1735645855849,-15826.28,0.00021643,3]
[347271735,1735645855858,-500.0,0.00021643,3]
[347271736,1735645855868,-766.16,0.00021643,3]
[347271737,1735645855876,-500.0,0.00021643,3]
[347271738,1735645855885,-947.06,0.00021643,3]
[347271739,1735645855894,-604.97,0.00021643,3]
[347271740,1735645855904,-500.0,0.00021643,3]
[347271741,1735645855913,-1925.31,0.00021643,3]
[347271742,1735645855922,-3847.8,0.00021643,3]
[347271743,1735645855932,-2137.74,0.00021643,3]
[347271744,1735645855941,-1286.15,0.00021643,3]
[347271745,1735645855949,-1244.23,0.00021643,3]
[347271746,1735645855958,-618.73,0.00021643,3]
[347271747,1735645855968,-8548.46227509,0.00021796,2]
[347271748,1735645855978,-500.0,0.00021917,3]
[347271749,1735645855987,-608.98,0.00021917,3]
[347271750,1735645855996,-3299.52,0.00021917,3]
[347271751,1735645856007,-500.0,0.00021917,3]
[347271752,1735645856017,-500.0,0.00021917,3]
[347271753,1735645856026,-604.89,0.00021917,3]
[347271754,1735645856035,-539.95,0.00021917,3]
[347271755,1735645856044,-500.0,0.00021917,3]
[347271756,1735645856054,-1808.34,0.00021917,3]
[347271757,1735645856063,-554.11,0.00021917,3]
[347271758,1735645856073,-500.0,0.00021917,3]
[347271759,1735645856082,-500.0,0.00021917,3]
[347271760,1735645856091,-689.31,0.00021917,3]
[347271761,1735645856100,-382.05639966,0.00021917,3]
[347271762,1735645856110,-500.0,0.00021917,3]
[347271763,1735645856119,-500.0,0.00021917,3]
[347271764,1735645856127,-500.0,0.00021917,3]
[347271765,1735645856136,-657.68,0.00021917,3]
[347271766,1735645856145,-684.21,0.00021917,3]
[347271767,1735645856155,-500.0,0.00021917,3]
[347271768,1735645856164,-500.0,0.00021917,3]
[347271769,1735645856174,-500.0,0.00021917,3]
[347271770,1735645856183,-507.52699439,0.00021917,3]
[347271771,1735645856192,-616.9,0.00021917,3]
[347271772,1735645856201,-500.0,0.00021917,3]
[347271773,1735645856211,-500.0,0.00021917,3]
[347271774,1735645856220,-500.0,0.00021917,2]
[347271775,1735645856229,-500.0,0.00021917,3]
[347271776,1735645856239,-500.0,0.00021917,3]
[347271777,1735645856248,-500.0,0.00021917,3]
[347271778,1735645856260,-500.0,0.00021917,3]
[347271779,1735645856270,-500.0,0.00021917,3]
[347271780,1735645856279,-500.0,0.00021917,3]
[347271781,1735645856288,-500.0,0.00021917,3]
[347271782,1735645856297,-500.0,0.00021917,3]
[347271783,1735645856307,-500.0,0.00021917,3]
[347271784,1735645856317,-500.0,0.00021917,3]